bitfinex-derivatives/quotes_SOLF0:USTF0_20241008
["timestamp","ask_amount","ask_price","bid_price","bid_amount"]
[1728385650657,14.05899466,144.28,144.27,3.4665]
[1728385652559,14.05899466,144.28,144.27,14.73272168]
[1728385653059,4.98502,144.29,144.28,3.4663]
[1728385653360,0.12502,144.29,144.28,3.4663]
[1728385653659,0.12502,144.29,144.28,9.46510844]
[1728385653857,0.12502,144.29,144.28,3.4663]
[1728385654046,0.12502,144.29,144.28,9.46510845]
[1728385654956,0.12502,144.29,144.28,14.72971493]
[1728385655452,0.12502,144.29,144.28,9.46510845]
[1728385657159,0.12502,144.29,144.28,3.4663]
[1728385659048,0.12502,144.29,144.28,14.72878102]
[1728385660557,3.4664,144.28,144.26,3.4667]
[1728385660752,10.65,144.27,144.26,3.4667]
[1728385660945,10.65,144.27,144.26,14.73112126]
[1728385661142,10.65,144.27,144.26,3.4667]
[1728385661351,10.65,144.27,144.26,14.73168755]
[1728385664462,10.65,144.27,144.26,3.4667]
[1728385664759,10.65,144.27,144.26,14.73219735]
[1728385666362,18.97017758,144.28,144.27,3.4665]
[1728385666559,18.97017758,144.28,144.27,14.73199735]
[1728385668471,4.86,144.28,144.27,14.73199735]
[1728385668670,0.12502,144.29,144.28,3.4663]
[1728385668960,0.12502,144.29,144.28,14.73179735]
[1728385669156,0.12502,144.29,144.28,3.4663]
[1728385669358,14.16448267,144.29,144.28,3.4663]
[1728385669663,14.16448267,144.29,144.27,3.4664]
[1728385670260,17.63058267,144.29,144.27,3.4664]
[1728385671068,22.49058267,144.29,144.27,3.4664]
[1728385674964,17.63058267,144.29,144.27,3.4664]
[1728385677068,14.1163,144.28,144.26,3.4667]
[1728385679672,10.65,144.28,144.23,1.3605]
[1728385679968,3.4665,144.27,144.25,3.4669]
[1728385680166,3.4665,144.27,144.26,11.26391687]
[1728385681963,8.37448267,144.29,144.27,3.4665]
[1728385682264,8.37448267,144.29,144.26,10.65]
[1728385682459,8.37448267,144.29,144.27,11.26008868]
[1728385682665,0.12502,144.29,144.28,3.4663]
[1728385682865,0.12502,144.29,144.28,20.11179124]
[1728385683065,0.12502,144.29,144.28,25.37367732]
[1728385684070,0.12502,144.29,144.28,14.72367732]
[1728385684265,0.12502,144.29,144.28,8.72818608]
[1728385684470,0.12502,144.29,144.28,14.72323504]
[1728385684671,3.65398131,144.29,144.28,8.72818608]
[1728385684873,0.12502,144.29,144.28,14.72389271]
[1728385685467,3.60436835,144.29,144.28,3.4663]
[1728385685661,3.60436835,144.29,144.28,9.46276848]
[1728385685867,3.60436835,144.29,144.28,14.7256891]
[1728385686065,0.12502,144.29,144.28,14.7256891]
[1728385686277,0.12502,144.29,144.28,14.72553573]
[1728385688175,0.12502,144.29,144.28,14.72599585]
[1728385689181,0.12502,144.29,144.28,3.4663]
[1728385689378,0.12502,144.29,144.28,14.7273019]
[1728385689770,0.12502,144.29,144.28,14.72805303]
[1728385692175,0.12502,144.29,144.28,3.4663]
[1728385692367,0.12502,144.29,144.28,9.46559813]
[1728385692977,0.12502,144.29,144.28,8.73166502]
[1728385694381,0.12502,144.29,144.28,3.4663]
[1728385694583,0.12502,144.29,144.28,9.46503298]
[1728385696087,0.12502,144.29,144.28,20.11503298]
[1728385699091,0.12502,144.29,144.28,14.1163]
[1728385699285,0.12502,144.29,144.28,20.11148344]
[1728385699592,0.12502,144.29,144.28,25.37283241]
[1728385701090,1e-08,144.29,144.28,25.37283241]
[1728385702989,1e-08,144.29,144.28,25.36871679]
[1728385706997,1e-08,144.29,144.28,19.3758904]
[1728385707291,1e-08,144.29,144.28,25.36591592]
[1728385708594,1e-08,144.29,144.28,25.36646155]
[1728385709897,1e-08,144.29,144.28,19.3758904]
[1728385710098,1e-08,144.29,144.28,25.36657893]
[1728385712694,1e-08,144.29,144.28,25.36412154]
[1728385713099,1e-08,144.29,144.28,20.10698853]
[1728385713300,1e-08,144.29,144.28,25.36401151]
[1728385715605,1e-08,144.29,144.28,19.37332298]
[1728385715805,1e-08,144.29,144.28,25.3626303]
[1728385717901,1e-08,144.29,144.28,19.37332298]
[1728385718100,1e-08,144.29,144.28,25.36310436]
[1728385725212,1e-08,144.29,144.28,14.1163]
[1728385725399,1e-08,144.29,144.28,19.37309034]
[1728385725599,1e-08,144.29,144.28,25.36269148]
[1728385729008,1e-08,144.29,144.28,25.36259665]
[1728385729218,1e-08,144.29,144.28,14.1163]
[1728385729416,1e-08,144.29,144.28,20.10571762]
[1728385729717,1e-08,144.29,144.28,25.36232059]
[1728385740317,1e-08,144.29,144.28,14.1163]
[1728385740621,1e-08,144.29,144.28,25.36285584]
[1728385741014,1e-08,144.29,144.28,14.71285584]
[1728385741417,1e-08,144.29,144.28,11.24655584]
[1728385741724,10.65000001,144.29,144.24,10.65]
[1728385742024,1e-08,144.29,144.26,10.65]
[1728385743216,1e-08,144.29,144.28,3.4663]
[1728385762446,1e-08,144.29,144.28,14.59039186]
[1728385762645,1e-08,144.29,144.28,3.4663]
[1728385762945,1e-08,144.29,144.28,14.59032923]
[1728385764247,1e-08,144.29,144.28,3.4663]
[1728385764842,10.65000001,144.29,144.25,10.65]
[1728385765042,14.08694954,144.29,144.26,11.12610322]
[1728385765238,14.08694954,144.29,144.27,11.12610322]
[1728385765435,14.08694954,144.29,144.25,10.65]
[1728385765634,14.08694954,144.29,144.26,11.12518029]
[1728385765947,14.08694954,144.29,144.27,11.12518029]
[1728385766248,14.08694954,144.29,144.25,10.65]
[1728385766448,14.08694954,144.29,144.28,3.4663]
[1728385770252,14.08694954,144.29,144.25,10.65]
[1728385770554,17.55314954,144.29,144.27,3.4665]
[1728385771550,14.08694954,144.29,144.27,3.4665]
[1728385772349,14.08694954,144.29,144.28,3.4663]
[1728385772853,17.55314954,144.29,144.26,3.4667]
[1728385773446,17.55314954,144.29,144.27,3.4665]
[1728385774048,14.08694954,144.29,144.25,10.65]
[1728385774355,14.08694954,144.29,144.26,11.12431142]
[1728385774556,14.08694954,144.29,144.26,5.19954503]
[1728385774944,14.08694954,144.29,144.25,10.65]
[1728385775150,14.08694954,144.29,144.26,11.12391651]
[1728385775352,14.08694954,144.29,144.25,10.65]
[1728385775554,14.08694954,144.29,144.28,3.4663]
[1728385777656,3.43694954,144.29,144.28,3.4663]
[1728385778661,1e-08,144.29,144.28,3.4663]
[1728385778861,3.39847536,144.29,144.28,3.4663]
[1728385800779,1e-08,144.29,144.28,14.1163]
[1728385800982,1e-08,144.29,144.28,25.2443288]
[1728385801675,1e-08,144.29,144.28,19.31757094]
[1728385801874,1e-08,144.29,144.28,25.24299486]
[1728385803183,1e-08,144.29,144.28,3.4663]
[1728385803382,1e-08,144.29,144.28,14.59013196]
[1728385804180,10.65000001,144.29,144.28,14.59013196]
[1728385804383,10.65000001,144.29,144.28,11.12383196]
[1728385804583,15.49000001,144.29,144.28,11.12383196]
[1728385804977,18.99926087,144.29,144.28,11.12383196]
[1728385805180,18.99926087,144.29,144.26,3.4667]
[1728385805378,10.65,144.27,144.26,3.4667]
[1728385805579,10.65,144.27,144.26,14.59268502]
[1728385810180,10.65,144.27,144.26,9.39619054]
[1728385810484,10.65,144.27,144.26,14.59988454]
[1728385811378,10.65,144.28,144.26,11.13318454]
[1728385811580,10.65,144.28,144.27,11.13318454]
[1728385812183,14.1163,144.28,144.27,11.13318454]
[1728385812886,14.1163,144.28,144.25,3.4669]
[1728385813183,10.65,144.26,144.25,3.4669]
[1728385813389,10.65,144.26,144.25,14.5993761]
[1728385813584,10.65,144.26,144.25,5.20339311]
[1728385813786,18.9568,144.26,144.25,5.20339311]
[1728385814084,15.49,144.26,144.23,0.12501999]
[1728385814288,10.65,144.24,144.23,0.12501999]
[1728385814490,10.65,144.24,144.23,11.2597169]
[1728385814682,10.65,144.24,144.23,3.59241999]
[1728385817792,14.1173,144.24,144.23,6.05904443]
[1728385818894,14.1173,144.24,144.23,0.12501999]
[1728385819688,14.1173,144.24,144.23,6.05907948]
[1728385819986,14.1173,144.24,144.23,6.05702547]
[1728385820188,14.1173,144.24,144.23,0.12501999]
[1728385825504,3.4687,144.19,144.17,0.12502]
[1728385825793,15.49,144.18,144.17,0.12502]
[1728385825985,15.49,144.18,144.17,11.3157992]
[1728385825986,22.39292113,144.18,144.17,11.3157992]
[1728385826190,18.92422113,144.18,144.17,11.3157992]
[1728385826790,18.92422113,144.18,144.17,5.39508739]
[1728385827184,18.92422113,144.18,144.17,3.59392]
[1728385827388,18.92422113,144.18,144.17,0.12502]
[1728385828492,22.39292113,144.18,144.17,0.12502]
[1728385832594,11.74292113,144.18,144.17,0.12502]
[1728385832991,22.39292113,144.18,144.17,0.12502]
[1728385833800,14.08422113,144.18,144.17,0.12502]
[1728385834101,3.43422113,144.18,144.17,0.12502]
[1728385834292,15.51,144.18,144.17,0.12502]
[1728385834602,18.90472543,144.18,144.17,0.12502]
[1728385835011,22.37342543,144.18,144.17,0.12502]
[1728385839705,18.90472543,144.18,144.17,0.12502]
[1728385839900,18.90472543,144.18,144.17,3.59392]
[1728385841210,14.04472543,144.18,144.17,3.59392]
[1728385841409,18.90472543,144.18,144.17,3.59392]
[1728385841911,18.90472543,144.18,144.17,0.12502]
[1728385842410,22.37342543,144.18,144.17,0.12502]
[1728385842611,18.90472543,144.18,144.17,3.59392]
[1728385843007,14.04472543,144.18,144.17,3.59392]
[1728385843208,18.90472543,144.18,144.17,3.59392]
[1728385845007,14.04472543,144.18,144.17,3.59392]
[1728385845212,18.90472543,144.18,144.17,3.59392]
[1728385845415,15.51,144.18,144.17,3.59392]
[1728385846016,18.94137852,144.18,144.17,3.59392]
[1728385847323,3.4683,144.2,144.18,3.4686]
[1728385847623,12.0414,144.18,144.17,0.12502]
[1728385847822,10.65,144.18,144.17,0.12502]
[1728385848515,10.65,144.18,144.17,3.59392]
[1728385851523,8.38402067,144.19,144.18,3.4687]
[1728385851723,4.86,144.2,144.17,0.12502]
[1728385851929,15.51,144.2,144.17,0.12502]
[1728385852129,15.51,144.2,144.19,3.4685]
[1728385852427,18.95883392,144.2,144.19,3.4685]
[1728385853829,4.86,144.2,144.19,3.4685]
[1728385854025,15.51,144.2,144.19,3.4685]
[1728385856134,4.84,144.21,144.18,1.3267]
[1728385856523,4.84,144.21,144.2,3.4682]
[1728385859234,19.01279332,144.21,144.2,3.4682]
[1728385859832,4.84,144.21,144.2,3.4682]
[1728385864237,8.25134352,144.21,144.2,3.4682]
[1728385865038,18.90134352,144.21,144.2,3.4682]
[1728385865234,15.49,144.21,144.2,3.4682]
[1728385865737,4.84,144.21,144.2,3.4682]
[1728385866238,10.65,144.22,144.18,1.3267]
[1728385866437,15.49,144.22,144.21,3.468]
[1728385868941,15.49,144.22,144.18,1.3267]
[1728385869130,10.65,144.19,144.18,1.3267]
[1728385869638,15.49,144.19,144.17,0.12502]
[1728385869940,10.65,144.18,144.17,0.12502]
[1728385870137,10.65,144.18,144.17,3.59382]
[1728385870326,10.65,144.18,144.17,0.12502]
[1728385871024,14.1187,144.18,144.17,0.12502]
[1728385877133,3.4696,144.15,144.11,92.03981302]
[1728385877338,15.49,144.14,144.12,11.13513341]
[1728385877640,4.84,144.14,144.13,11.13513341]
[1728385878033,4.84,144.14,144.13,14.60503341]
[1728385878435,4.84,144.14,144.13,3.4699]
[1728385878735,4.84,144.14,144.13,14.60957689]
[1728385879535,4.84,144.14,144.13,3.4699]
[1728385879733,4.84,144.14,144.13,14.61211375]
[1728385879932,4.84,144.14,144.13,13.9151613]
[1728385880131,4.84,144.14,144.13,8.69252915]
[1728385880337,15.49,144.14,144.13,3.4699]
[1728385880642,15.49,144.14,144.13,14.61599464]
[1728385881142,15.49,144.14,144.13,14.6157126]
[1728385882535,15.49,144.14,144.13,14.61797978]
[1728385884550,1.3704,144.14,144.13,11.14807978]
[1728385885137,1.3704,144.14,144.13,14.61797978]
[1728385885847,1.3704,144.14,144.13,8.69633341]
[1728385886047,1.3704,144.14,144.13,14.61889475]
[1728385889454,1.3704,144.14,144.13,14.6198081]
[1728385889949,3.469,144.17,144.13,11.1499081]
[1728385890152,10.65,144.15,144.14,14.6196081]
[1728385890355,14.20528728,144.15,144.14,14.6196081]
[1728385891657,15.49,144.15,144.14,14.6196081]
[1728385891856,14.07584636,144.17,144.16,3.4692]
[1728385892042,18.91584636,144.17,144.16,3.4692]
[1728385892248,18.91584636,144.17,144.16,8.69532915]
[1728385892659,18.91584636,144.17,144.16,14.62070772]
[1728385892954,3.42584636,144.17,144.16,8.69532915]
[1728385893156,4.84,144.17,144.16,14.62089724]
[1728385893355,14.1782192,144.18,144.16,11.15169724]
[1728385893555,3.4679,144.22,144.15,10.65]
[1728385893762,10.65,144.2,144.18,3.4685]
[1728385894459,14.14282249,144.2,144.18,3.4685]
[1728385895050,10.65,144.19,144.18,3.4685]
[1728385895245,10.65,144.19,144.18,14.62060674]
[1728385896463,10.65,144.19,144.18,8.69560145]
[1728385896664,10.65,144.19,144.18,14.62069446]
[1728385897162,6.96102249,144.2,144.18,14.62069446]
[1728385897357,10.65,144.19,144.18,3.4685]
[1728385897553,10.65,144.19,144.18,14.62052515]
[1728385899062,10.65,144.19,144.18,8.69555739]
[1728385899354,10.65,144.19,144.18,5.22705739]
[1728385899562,10.65,144.19,144.18,11.15261988]
[1728385899764,10.65,144.19,144.18,14.62131988]
[1728385900154,10.65,144.19,144.18,11.15261988]
[1728385900354,14.1185,144.19,144.18,11.15261988]
[1728385900656,14.1185,144.19,144.14,1.3686]
[1728385900857,15.49,144.18,144.16,3.469]
[1728385901064,15.49,144.18,144.17,11.15810035]
[1728385901457,15.49,144.18,144.17,14.62700035]
[1728385906773,15.49,144.18,144.17,3.4689]
[1728385907065,15.49,144.18,144.17,14.62860592]
[1728385910264,15.49,144.18,144.17,3.4689]
[1728385910475,15.49,144.18,144.17,9.39763416]
[1728385910766,15.49,144.18,144.17,14.62809705]
[1728385911767,4.84,144.18,144.17,14.62809705]
[1728385911967,15.49,144.18,144.17,14.62809705]
[1728385912772,15.49,144.18,144.17,14.627546]
[1728385915975,15.49,144.18,144.17,14.62646905]
[1728385917068,15.49,144.18,144.17,11.15756905]
[1728385917672,18.9587,144.18,144.17,5.92765721]
[1728385917878,18.9587,144.18,144.17,11.15725757]
[1728385918171,15.49,144.18,144.17,11.15725757]
[1728385919284,15.49,144.18,144.17,9.39655721]
[1728385921278,15.49,144.18,144.17,3.4689]
[1728385921484,15.49,144.18,144.17,9.39629479]
[1728385924200,15.49,144.18,144.17,5.92739479]
[1728385924392,18.9587,144.18,144.16,3.4691]
[1728385924691,10.65,144.17,144.16,3.4691]
[1728385924874,14.119,144.17,144.16,5.92925834]
[1728385925083,10.65,144.17,144.16,5.92925834]
[1728385925378,3.4693,144.16,144.13,3.4697]
[1728385925586,10.65,144.14,144.13,3.4697]
[1728385925792,10.65,144.14,144.13,9.40080369]
[1728385928390,10.65,144.14,144.13,3.4697]
[1728385928893,10.65,144.14,144.13,9.40118426]
[1728385930191,14.1197,144.14,144.13,5.93148426]
[1728385931887,10.65,144.14,144.11,0.12502]
[1728385932089,10.65,144.13,144.11,0.12502]
[1728385932289,4.84,144.15,144.14,3.4697]
[1728385932592,15.49,144.15,144.13,5.93242198]
[1728385932891,15.49,144.15,144.14,5.93242198]
[1728385933097,15.49,144.15,144.14,9.40212198]
[1728385933295,15.49,144.15,144.14,5.93242198]
[1728385934798,18.9594,144.15,144.14,5.93242198]
[1728385935097,15.49,144.15,144.14,5.93242198]
[1728385936397,18.9594,144.15,144.14,5.93242198]
[1728385939003,15.49,144.15,144.14,5.93242198]
[1728385941003,15.49,144.15,144.13,3.4698]
[1728385941201,10.65,144.15,144.13,3.4698]
[1728385941501,4.84,144.14,144.13,3.4698]
[1728385941904,10.65,144.16,144.13,5.93345795]
[1728385942107,4.84,144.15,144.14,3.4697]
[1728385942405,4.84,144.15,144.14,9.40315795]
[1728385943307,4.84,144.15,144.14,3.4697]
[1728385943502,4.84,144.15,144.14,9.40258507]
[1728385943703,15.49,144.15,144.14,9.40258507]
[1728385945714,68.61757004,144.19,144.14,9.40258507]
[1728385945715,68.61757004,144.19,144.14,5.93288507]
[1728385945910,68.61757004,144.19,144.15,5.93288507]
[1728385945911,10.65,144.17,144.15,5.93288507]
[1728385946099,4.84,144.18,144.16,5.93288507]
[1728385946295,15.49,144.18,144.17,5.93288507]
[1728385947505,15.49,144.18,144.17,9.40158507]
[1728385949411,10.65,144.18,144.17,9.40158507]
[1728385949607,73.45757004,144.19,144.18,3.4687]
[1728385949808,73.45757004,144.19,144.18,9.40158507]
[1728385950109,68.61757004,144.19,144.18,9.40158507]
[1728385950306,68.61757004,144.19,144.18,3.4687]
[1728385950607,68.61757004,144.19,144.18,9.40251267]
[1728385952209,18.98282249,144.2,144.19,3.4685]
[1728385952506,18.98282249,144.2,144.19,9.40231267]
[1728385953706,18.98282249,144.2,144.19,3.4685]
[1728385953915,18.98282249,144.2,144.19,9.40182666]
[1728385954411,18.98282249,144.2,144.19,9.40187495]
[1728385957011,18.98282249,144.2,144.19,5.93337495]
[1728385959313,18.98282249,144.2,144.19,9.40187495]
[1728385960113,8.33282249,144.2,144.19,9.40187495]
[1728385963210,0.12502,144.23,144.19,5.93337495]
[1728385963514,8.49974913,144.23,144.22,3.4677]
[1728385963811,3.62506092,144.23,144.22,3.4677]
[1728385964210,3.62506092,144.23,144.22,8.7617754]
[1728385967318,3.62506092,144.23,144.22,3.4677]
[1728385967814,3.62506092,144.23,144.22,8.75894995]
[1728385970115,3.62506092,144.23,144.22,3.4677]
[1728385971604,14.27506092,144.23,144.18,1.4356]
[1728385971809,17.74266092,144.23,144.19,11.20917784]
[1728385972010,17.74266092,144.23,144.2,11.20917784]
[1728385972207,17.74266092,144.23,144.21,5.28778056]
[1728385972410,17.74266092,144.23,144.18,12.0856]
[1728385972615,17.74266092,144.23,144.19,11.20893592]
[1728385972817,17.74266092,144.23,144.21,3.4678]
[1728385978422,14.1179,144.22,144.2,3.4682]
[1728385979322,8.308,144.21,144.19,3.4683]
[1728385980130,8.308,144.21,144.17,1.32]
[1728385980131,4.84,144.21,144.17,1.32]
[1728385980433,10.65,144.2,144.18,11.20883319]
[1728385980628,10.65,144.2,144.19,11.20883319]
[1728385981530,10.65,144.2,144.19,14.67723319]
[1728385981831,10.65,144.2,144.19,3.4684]
[1728385982017,10.65,144.2,144.19,9.38859903]
[1728385982220,10.65,144.2,144.19,8.75521925]
[1728385984434,10.65,144.2,144.19,3.4684]
[1728385986129,10.65,144.2,144.17,1.32]
[1728385986434,10.65,144.19,144.18,11.11863999]
[1728385987228,10.65,144.19,144.16,91.88462925]
[1728385987426,10.65,144.19,144.18,3.4687]
[1728385989627,10.65,144.19,144.18,9.38716904]
[1728385989826,10.65,144.19,144.18,14.58833626]
[1728385990543,10.65,144.19,144.18,11.11963626]
[1728385990725,14.1185,144.19,144.16,3.4691]
[1728385990930,10.65,144.17,144.16,3.4691]
[1728385991230,10.65,144.17,144.16,14.59098851]
[1728385992446,10.65,144.17,144.16,5.20220019]
[1728385992746,10.65,144.17,144.16,11.12283045]
[1728385994242,10.65,144.17,144.16,14.59203045]
[1728385994544,10.65,144.17,144.16,11.12283045]
[1728385995445,14.1189,144.17,144.16,11.12283045]
[1728385995847,14.1189,144.17,144.14,3.4695]
[1728385996039,10.65,144.15,144.14,3.4695]
[1728385996243,10.65,144.15,144.14,9.39189505]
[1728385996446,14.10056659,144.15,144.14,9.39189505]
[1728385996848,14.10056659,144.15,144.14,14.59717658]
[1728385999350,14.10056659,144.15,144.14,3.4695]
[1728385999755,14.10056659,144.15,144.14,14.59723349]
[1728386000348,10.65,144.16,144.15,3.4694]
[1728386000647,10.65,144.16,144.15,14.59713349]
[1728386001659,10.65,144.16,144.15,3.4694]
[1728386002550,10.65,144.16,144.15,14.60035091]
[1728386003145,4.84,144.18,144.15,14.60035091]
[1728386003347,10.65,144.16,144.15,14.60035091]
[1728386003555,10.65,144.16,144.15,3.4694]
[1728386004648,10.65,144.16,144.15,14.60245266]
[1728386005359,10.65,144.16,144.15,3.4694]
[1728386005653,10.65,144.16,144.15,14.60375991]
[1728386008745,10.65,144.16,144.15,8.67749773]
[1728386009350,10.65,144.16,144.15,14.60564841]
[1728386010563,10.65,144.16,144.15,9.39755068]
[1728386012555,10.65,144.16,144.15,9.3997696]
[1728386016153,10.65,144.16,144.15,3.4694]
[1728386016351,10.65,144.16,144.15,9.39936956]
[1728386018953,10.65,144.16,144.15,5.92996956]
[1728386019959,14.1192,144.16,144.15,5.92996956]
[1728386021267,10.65,144.16,144.15,5.92996956]
[1728386022767,14.1192,144.16,144.15,5.92996956]
[1728386026363,10.65,144.16,144.15,5.92996956]
[1728386027865,14.1192,144.16,144.15,5.92996956]
[1728386029670,3.4695,144.15,144.12,1.4009]
[1728386029973,10.65,144.13,144.12,1.4009]
[1728386030172,10.65,144.13,144.12,4.8709]
[1728386033982,4.84,144.14,144.13,3.4699]
[1728386034382,18.94694602,144.15,144.12,1.4009]
[1728386034580,15.49,144.15,144.12,1.4009]
[1728386034971,3.42283263,144.14,144.13,3.4699]
[1728386035177,68.6166538,144.19,144.12,1.4009]
[1728386035477,10.65,144.17,144.12,1.4009]
[1728386036074,10.65,144.17,144.16,3.4692]
[1728386037279,4.84,144.18,144.17,3.4689]
[1728386037480,15.49,144.18,144.17,3.4689]
[1728386037675,10.65,144.18,144.17,3.4689]
[1728386037874,15.49,144.18,144.17,3.4689]
[1728386038076,10.65,144.18,144.17,3.4689]
[1728386041184,68.6166538,144.19,144.14,1.4419]
[1728386041391,3.468,144.21,144.19,3.4684]
[1728386041580,15.49,144.2,144.19,3.4684]
[1728386042292,4.84,144.2,144.19,3.4684]
[1728386042482,15.49,144.2,144.19,3.4684]
[1728386043378,10.65,144.2,144.19,3.4684]
[1728386043680,15.49,144.2,144.19,3.4684]
[1728386044188,10.65,144.2,144.19,3.4684]
[1728386044378,15.49,144.2,144.19,3.4684]
[1728386044689,4.84,144.2,144.19,3.4684]
[1728386044891,15.49,144.2,144.19,3.4684]
[1728386047082,15.49,144.2,144.15,11.955]
[1728386047083,15.49,144.2,144.18,3.4686]
[1728386047279,10.65,144.19,144.18,3.4686]
[1728386051296,14.1186,144.19,144.16,3.469]
[1728386051496,14.1186,144.19,144.15,1.305]
[1728386052395,10.65,144.19,144.18,3.4687]
[1728386057218,10.65,144.19,144.17,3.4688]
[1728386057713,14.1185,144.19,144.17,3.4688]
[1728386065717,15.49,144.2,144.18,3.4686]
[1728386074531,2.6923,144.24,144.16,10.65]
[1728386074832,10.65,144.21,144.17,10.65]
[1728386076632,10.65,144.21,144.19,3.4683]
[1728386078235,8.3079,144.22,144.19,3.4683]
[1728386078435,10.65,144.21,144.19,3.4683]
[1728386079930,15.49,144.21,144.19,3.4683]
[1728386082431,1.3721,144.21,144.18,10.65]
[1728386082640,14.27506092,144.23,144.18,10.65]
[1728386082928,14.27506092,144.23,144.15,93.19966057]
[1728386082929,8.46506092,144.23,144.22,3.4677]
[1728386084430,8.46506092,144.23,144.22,8.80275468]
[1728386084625,0.12502,144.23,144.22,8.80275468]
[1728386084827,0.12502,144.23,144.22,8.8023073]
[1728386086039,0.12502,144.23,144.22,3.4677]
[1728386086430,0.12502,144.23,144.22,8.79877815]
[1728386093239,0.12502,144.23,144.22,3.4677]
[1728386093533,0.12502,144.23,144.22,8.79527746]
[1728386096756,0.12502,144.23,144.22,3.4677]
[1728386097040,0.12502,144.23,144.22,8.79423539]
[1728386100242,10.77502,144.23,144.22,8.7953045]
[1728386100440,0.12502,144.23,144.22,8.7953045]
[1728386103147,10.77502,144.23,144.22,8.7953045]
[1728386104242,10.77502,144.23,144.22,5.3276045]
[1728386104454,14.24252,144.23,144.22,5.3276045]
[1728386104842,14.24252,144.23,144.22,5.33114747]
[1728386105148,3.4679,144.22,144.2,3.4681]
[1728386105337,14.1179,144.22,144.21,5.33206483]
[1728386105949,14.1179,144.22,144.2,3.4681]
[1728386107150,10.65,144.22,144.19,1.3258]
[1728386107350,3.468,144.21,144.2,5.33614069]
[1728386108249,14.1178,144.22,144.2,8.80434069]
[1728386108452,14.1178,144.22,144.2,3.4682]
[1728386109249,14.1178,144.22,144.21,5.33974579]
[1728386109838,14.1178,144.22,144.2,3.4682]
[1728386111154,14.1178,144.22,144.21,5.34071449]
[1728386111341,14.1178,144.22,144.2,3.4682]
[1728386111944,14.1178,144.22,144.21,5.34042214]
[1728386112752,19.06262,144.23,144.21,8.80822214]
[1728386113053,19.06262,144.23,144.21,3.4678]
[1728386114850,19.06262,144.23,144.22,5.33770062]
[1728386116155,19.06262,144.23,144.21,3.4678]
[1728386125460,19.06262,144.23,144.22,5.33869491]
[1728386125658,19.06262,144.23,144.21,3.4678]
[1728386125859,19.06262,144.23,144.22,5.33866384]
[1728386126765,19.06262,144.23,144.21,3.4678]
[1728386129665,19.06262,144.23,144.22,5.34024158]
[1728386132655,19.06262,144.23,144.22,5.34178981]
[1728386134275,19.06262,144.23,144.21,3.4678]
[1728386134563,19.06262,144.23,144.22,5.34250602]
[1728386137566,19.06262,144.23,144.19,1.3258]
[1728386137868,19.06262,144.23,144.2,5.34341467]
[1728386138064,19.06262,144.23,144.21,5.34341467]
[1728386138270,19.06262,144.23,144.22,5.34341467]
[1728386140567,19.06262,144.23,144.22,5.33719611]
[1728386140966,0.12502,144.23,144.22,8.80489611]
[1728386141163,4.94502,144.23,144.22,8.80489611]
[1728386141370,0.12502,144.23,144.22,19.45489611]
[1728386141568,4.82,144.26,144.25,3.467]
[1728386141781,4.82,144.26,144.23,10.65]
[1728386141782,3.40971946,144.26,144.23,10.65]
[1728386141963,4.82,144.27,144.24,5.33719611]
[1728386142163,3.45758735,144.26,144.25,3.467]
[1728386142365,3.45758735,144.26,144.25,8.80419611]
[1728386142568,4.82,144.27,144.25,5.33719611]
[1728386142765,4.82,144.27,144.26,8.80399611]
[1728386142968,8.26093765,144.27,144.26,8.80399611]
[1728386144871,18.91093765,144.27,144.26,8.80399611]
[1728386145677,18.91093765,144.27,144.26,5.33719611]
[1728386145875,22.37743765,144.27,144.25,3.467]
[1728386146176,18.91093765,144.27,144.22,10.65]
[1728386146377,22.37763765,144.27,144.24,3.467]